fUST/lending_fUST_20250719
["ID","MTS","AMOUNT","RATE_DAILY","PERIOD"]
[373089276,1752858646719,-460.0,0.00017278,2]
[373089278,1752858646729,-250.89168,0.00017278,2]
[373089280,1752858646740,-460.0,0.00017278,2]
[373089282,1752858646749,-460.0,0.00017278,2]
[373089284,1752858646758,-2073.39,0.00017278,2]
[373089286,1752858646768,-460.0,0.00017278,2]
[373089288,1752858646777,-5605.67,0.00017278,2]
[373089290,1752858646786,-151.0,0.00017278,2]
[373089292,1752858646795,-460.0,0.00017278,2]
[373089294,1752858646805,-460.0,0.00017278,2]
[373089296,1752858646815,-925.99099873,0.00017279,2]
[373089298,1752858646825,-200.82605146,0.00017279,2]
[373089300,1752858646834,-460.0,0.00017279,2]
[373089302,1752858646843,-460.0,0.00017279,2]
[373089304,1752858646853,-1731.1,0.00017279,2]
[373089306,1752858646862,-460.0,0.00017279,2]
[373089308,1752858646872,-460.0,0.00017279,2]
[373089310,1752858646881,-460.0,0.00017279,2]
[373089312,1752858646890,-460.0,0.00017279,2]
[373089314,1752858646901,-460.0,0.00017279,2]
[373089316,1752858646910,-460.0,0.00017279,2]
[373089318,1752858646919,-460.0,0.00017279,2]
[373089320,1752858646928,-460.0,0.00017279,2]
[373089322,1752858646938,-484.83,0.00017279,2]
[373089324,1752858646947,-477.42,0.00017279,2]
[373089326,1752858646957,-460.0,0.00017279,2]
[373089328,1752858646967,-681.11,0.00017279,2]
[373089330,1752858646977,-460.0,0.00017279,2]
[373089332,1752858646986,-2400.36,0.00017279,2]
[373089334,1752858646996,-460.0,0.00017279,2]
[373089336,1752858647005,-460.0,0.00017279,2]
[373089338,1752858647014,-334.6,0.0001728,2]
[373089340,1752858647024,-460.0,0.0001728,2]
[373089342,1752858647033,-460.0,0.0001728,2]
[373089344,1752858647042,-460.0,0.0001728,2]
[373089346,1752858647052,-460.0,0.0001728,2]
[373089348,1752858647061,-460.0,0.0001728,2]
[373089350,1752858647070,-460.0,0.0001728,2]
[373089352,1752858647080,-460.0,0.0001728,2]
[373089354,1752858647089,-460.0,0.0001728,2]
[373089356,1752858647099,-460.0,0.0001728,2]
[373089358,1752858647108,-460.0,0.0001728,2]
[373089360,1752858647117,-311.60091367,0.0001728,2]
[373089362,1752858647127,-460.0,0.0001728,2]
[373089364,1752858647136,-460.0,0.0001728,2]
[373089366,1752858647145,-460.0,0.0001728,2]
[373089368,1752858647154,-460.0,0.0001728,2]
[373089370,1752858647164,-460.0,0.0001728,2]
[373089372,1752858647173,-460.0,0.0001728,2]
[373089374,1752858647183,-460.0,0.0001728,2]
[373089376,1752858647192,-460.0,0.0001728,2]
[373089377,1752858647201,-460.0,0.0001728,2]
[373089379,1752858647211,-460.0,0.0001728,2]
[373089381,1752858647220,-460.0,0.0001728,2]
[373089383,1752858647229,-460.0,0.0001728,2]
[373089385,1752858647240,-460.0,0.0001728,2]
[373089387,1752858647249,-460.0,0.0001728,2]
[373089389,1752858647258,-460.0,0.0001728,2]
[373089391,1752858647267,-460.0,0.0001728,2]
[373089393,1752858647277,-151.0,0.0001728,2]
[373089395,1752858647286,-151.0,0.0001728,2]
[373089397,1752858647296,-460.0,0.0001728,2]
[373089399,1752858647305,-460.0,0.0001728,2]
[373089401,1752858647315,-4644.07,0.0001728,2]
[373089403,1752858647324,-1229.7,0.0001728,2]
[373089405,1752858647333,-460.0,0.0001728,2]
[373089407,1752858647342,-198.0,0.00017282,2]
[373089409,1752858647351,-151.0,0.00017282,2]
[373089411,1752858647360,-736.0,0.00017282,2]
[373089413,1752858647370,-500.0,0.00017282,2]
[373089415,1752858647379,-151.0,0.00017282,2]
[373089417,1752858647389,-1122.5,0.00017282,2]
[373089419,1752858647399,-1890.89,0.00017282,2]
[373089421,1752858647411,-1359.29,0.00017282,2]
[373089423,1752858647420,-4623.0,0.00017282,2]
[373089425,1752858647429,-1513.01,0.00017282,2]
[373089427,1752858647438,-460.0,0.00017282,2]
[373089429,1752858647448,-522.98,0.00017284,2]
[373089431,1752858647457,-525.98,0.00017284,2]
[373089433,1752858647466,-151.0,0.00017284,2]
[373089435,1752858647475,-1021.92,0.00017284,2]
[373089437,1752858647486,-151.0,0.00017284,2]
[373089439,1752858647496,-151.0,0.00017284,2]
[373089441,1752858647507,-291.369193,0.00017284,2]
[373089443,1752858647516,-291.369193,0.00017284,2]
[373089445,1752858647525,-309.0,0.00017287,2]
[373089447,1752858647534,-2849.60510466,0.00017452,2]
[373089449,1752858647543,-504.70318548,0.00017521,2]
[373089451,1752858647552,-502.33047726,0.00017521,2]
[373089453,1752858647562,-361.76100224,0.00017521,2]
[373089455,1752858647571,-1000.0,0.00017521,2]
[373089457,1752858647580,-1000.0,0.00017521,2]
[373089459,1752858647589,-501.57240577,0.00017521,2]
[373089461,1752858647598,-1000.0,0.00017521,2]
[373089462,1752858647610,-1000.0,0.00017521,2]
[373089464,1752858647618,-1000.0,0.00017521,2]
[373089466,1752858647627,-1000.0,0.00017521,2]
[373089468,1752858647637,-500.0,0.00017521,2]
[373089470,1752858647646,-240.58273336,0.00017538,2]
[373089472,1752858647656,-460.0,0.0001755,2]
[373089474,1752858647666,-460.0,0.0001755,2]
[373089476,1752858647675,-460.0,0.0001755,2]
[373089478,1752858647684,-460.0,0.0001755,2]
[373089480,1752858647693,-460.0,0.0001755,2]
[373089482,1752858647702,-460.0,0.0001755,2]
[373089484,1752858647711,-1937.58,0.0001755,2]
[373089486,1752858647722,-460.0,0.00017551,2]
[373089488,1752858647731,-460.0,0.00017551,2]
[373089490,1752858647742,-460.0,0.00017551,2]
[373089492,1752858647751,-460.0,0.00017551,2]
[373089494,1752858647760,-460.0,0.00017551,2]
[373089496,1752858647769,-488.29088345,0.00017551,2]
[373089498,1752858647779,-460.0,0.00017551,2]
[373089500,1752858647788,-460.0,0.00017551,2]
[373089502,1752858647797,-460.0,0.00017551,2]
[373089504,1752858647806,-460.0,0.00017551,2]
[373089506,1752858647816,-460.0,0.00017551,2]
[373089517,1752858647911,-460.0,0.00017551,2]
[373089519,1752858647922,-465.14027417,0.00017551,2]
[373089521,1752858647931,-460.0,0.00017551,2]
[373089523,1752858647940,-460.0,0.00017551,2]
[373089525,1752858647950,-460.0,0.00017551,2]
[373089527,1752858647959,-460.0,0.00017551,2]
[373089529,1752858647969,-460.0,0.00017551,2]
[373089531,1752858647979,-460.0,0.00017551,2]
[373089533,1752858647988,-460.0,0.00017551,2]
[373089535,1752858647998,-460.0,0.00017551,2]
[373089537,1752858648008,-460.0,0.00017551,2]
[373089539,1752858648018,-460.0,0.00017551,2]
[373089541,1752858648027,-460.0,0.00017551,2]
[373089543,1752858648036,-460.0,0.00017551,2]
[373089545,1752858648046,-460.0,0.00017551,2]
[373089546,1752858648055,-460.0,0.00017551,2]
[373089547,1752858648065,-460.0,0.00017551,2]
[373089548,1752858648074,-460.0,0.00017551,2]
[373089549,1752858648083,-460.0,0.00017551,2]
[373089550,1752858648092,-460.0,0.00017551,2]
[373089551,1752858648102,-460.0,0.00017551,2]
[373089552,1752858648111,-460.0,0.00017551,2]
[373089553,1752858648121,-460.0,0.00017551,2]
[373089554,1752858648130,-460.0,0.00017551,2]
[373089556,1752858648140,-711.11,0.00017551,2]
[373089558,1752858648149,-485.57,0.00017551,2]
[373089560,1752858648159,-171.31118673,0.00017551,2]
[373089562,1752858648168,-460.0,0.00017551,2]
[373089564,1752858648178,-460.0,0.00017551,2]
[373089566,1752858648187,-460.0,0.00017551,2]
[373089568,1752858648197,-460.0,0.00017551,2]
[373089570,1752858648207,-460.0,0.00017551,2]
[373089572,1752858648218,-467.84031752,0.00017551,2]
[373089574,1752858648228,-460.0,0.00017551,2]
[373089576,1752858648237,-460.0,0.00017551,2]
[373089578,1752858648248,-460.0,0.00017551,2]
[373089581,1752858648259,-460.0,0.00017551,2]
[373089583,1752858648268,-460.0,0.00017551,2]
[373089585,1752858648277,-460.0,0.00017551,2]
[373089587,1752858648286,-460.0,0.00017551,2]
[373089589,1752858648296,-460.0,0.00017551,2]
[373089591,1752858648306,-356.33021345,0.00017551,2]
[373089593,1752858648315,-460.0,0.00017551,2]
[373089595,1752858648325,-460.0,0.00017551,2]
[373089597,1752858648335,-460.0,0.00017551,2]
[373089599,1752858648344,-460.0,0.00017551,2]
[373089601,1752858648354,-925.97,0.00017551,2]
[373089603,1752858648363,-460.0,0.00017551,2]
[373089605,1752858648373,-460.0,0.00017551,2]
[373089607,1752858648382,-460.0,0.00017551,2]
[373089609,1752858648391,-460.0,0.00017551,2]
[373089611,1752858648401,-460.0,0.00017551,2]
[373089613,1752858648413,-460.0,0.00017551,2]
[373089615,1752858648422,-460.0,0.00017551,2]
[373089617,1752858648432,-460.0,0.00017551,2]
[373089619,1752858648441,-460.0,0.00017551,2]
[373089621,1752858648451,-460.0,0.00017551,2]
[373089622,1752858648460,-460.0,0.00017551,2]
[373089625,1752858648470,-460.0,0.00017551,2]
[373089627,1752858648479,-460.0,0.00017551,2]
[373089628,1752858648491,-460.0,0.00017551,2]
[373089631,1752858648502,-460.0,0.00017551,2]
[373089632,1752858648512,-460.0,0.00017551,2]
[373089635,1752858648522,-460.0,0.00017551,2]
[373089637,1752858648532,-604.8,0.00017551,2]
[373089638,1752858648541,-1112.11,0.00017551,2]
[373089640,1752858648550,-420.88806263,0.00017551,2]
[373089642,1752858648560,-460.0,0.00017552,2]
[373089644,1752858648570,-460.0,0.00017552,2]
[373089646,1752858648579,-460.0,0.00017552,2]
[373089648,1752858648589,-557.15,0.00017552,2]
[373089650,1752858648599,-460.0,0.00017552,2]
[373089652,1752858648609,-460.0,0.00017552,2]
[373089654,1752858648619,-460.0,0.00017552,2]
[373089656,1752858648629,-460.0,0.00017552,2]
[373089658,1752858648640,-460.0,0.00017552,2]
[373089660,1752858648650,-460.0,0.00017552,2]
[373089662,1752858648661,-634.72,0.00017552,2]
[373089664,1752858648671,-317.27,0.00017552,2]
[373089666,1752858648681,-460.0,0.00017552,2]
[373089668,1752858648691,-460.0,0.00017552,2]
[373089670,1752858648702,-460.0,0.00017552,2]
[373089672,1752858648712,-460.0,0.00017552,2]
[373089674,1752858648722,-460.0,0.00017552,2]
[373089676,1752858648732,-460.0,0.00017552,2]
[373089678,1752858648742,-460.0,0.00017552,2]
[373089680,1752858648752,-605.39,0.00017552,2]
[373089682,1752858648762,-460.0,0.00017552,2]
[373089684,1752858648773,-1644.5,0.00017552,2]
[373089686,1752858648783,-460.0,0.00017552,2]
[373089688,1752858648792,-852.85,0.00017552,2]
[373089690,1752858648802,-460.0,0.00017552,2]
[373089692,1752858648812,-460.0,0.00017552,2]
[373089695,1752858648822,-460.0,0.00017552,2]
[373089697,1752858648832,-460.0,0.00017552,2]
[373089699,1752858648841,-409.28350025,0.00017552,2]
[373089700,1752858648851,-2496.21,0.00017552,2]
[373089702,1752858648860,-460.0,0.00017552,2]
[373089704,1752858648870,-460.0,0.00017552,2]
[373089706,1752858648880,-460.0,0.00017552,2]
[373089709,1752858648890,-460.0,0.00017552,2]
[373089711,1752858648899,-460.0,0.00017552,2]
[373089713,1752858648908,-2073.39,0.00017552,2]
[373089715,1752858648917,-460.0,0.00017552,2]
[373089717,1752858648927,-5605.67,0.00017552,2]
[373089719,1752858648937,-151.0,0.00017552,2]
[373089721,1752858648945,-460.0,0.00017552,2]
[373089723,1752858648954,-460.0,0.00017552,2]
[373089725,1752858648963,-460.0,0.00017553,2]
[373089727,1752858648972,-460.0,0.00017553,2]
[373089729,1752858648981,-1731.1,0.00017553,2]
[373089731,1752858648991,-544.87160322,0.00017553,2]
[373089732,1752858649000,-460.0,0.00017553,2]
[373089735,1752858649009,-460.0,0.00017553,2]
[373089737,1752858649018,-460.0,0.00017553,2]
[373089739,1752858649028,-460.0,0.00017553,2]
[373089741,1752858649037,-151.0,0.00017553,2]
[373089743,1752858649046,-460.0,0.00017553,2]
[373089745,1752858649056,-460.0,0.00017553,2]
[373089747,1752858649065,-460.0,0.00017553,2]
[373089748,1752858649075,-484.83,0.00017553,2]
[373089751,1752858649084,-477.42,0.00017553,2]
[373089752,1752858649093,-460.0,0.00017553,2]
[373089754,1752858649103,-151.0,0.00017553,2]
[373089756,1752858649113,-681.11,0.00017553,2]
[373089758,1752858649123,-165.978622,0.00017553,2]
[373089760,1752858649132,-250.89168,0.00017553,2]
[373089762,1752858649141,-250.89168,0.00017553,2]
[373089764,1752858649151,-460.0,0.00017553,2]
[373089766,1752858649161,-2400.36,0.00017553,2]
[373089768,1752858649170,-460.0,0.00017553,2]
[373089770,1752858649179,-164.39,0.00017554,2]
[373089772,1752858649189,-460.0,0.00017554,2]
[373089774,1752858649198,-460.0,0.00017554,2]
[373089776,1752858649208,-460.0,0.00017554,2]
[373089778,1752858649217,-460.0,0.00017554,2]
[373089780,1752858649226,-524.93,0.00017554,2]
[373089782,1752858649236,-460.0,0.00017554,2]
[373089784,1752858649247,-460.0,0.00017554,2]
[373089786,1752858649256,-460.0,0.00017554,2]
[373089788,1752858649267,-460.0,0.00017554,2]
[373089791,1752858649277,-460.0,0.00017554,2]
[373089793,1752858649286,-460.0,0.00017554,2]
[373089795,1752858649295,-460.0,0.00017554,2]
[373089797,1752858649304,-460.0,0.00017554,2]
[373089799,1752858649314,-460.0,0.00017554,2]
[373089801,1752858649323,-460.0,0.00017554,2]
[373089802,1752858649334,-493.36530268,0.00017554,2]
[373089805,1752858649343,-460.0,0.00017554,2]
[373089806,1752858649352,-374.54307564,0.00017554,2]
[373089809,1752858649361,-460.0,0.00017554,2]
[373089811,1752858649371,-460.0,0.00017554,2]
[373089813,1752858649381,-4644.07,0.00017554,2]
[373089815,1752858649390,-1229.7,0.00017554,2]
[373089817,1752858649399,-482.6408358,0.00017554,2]
[373089818,1752858649410,-736.0,0.00017556,2]
[373089821,1752858649420,-500.0,0.00017556,2]
[373089822,1752858649429,-245.0,0.00017556,2]
[373089825,1752858649439,-1122.5,0.00017556,2]
[373089827,1752858649450,-1890.89,0.00017556,2]
[373089829,1752858649460,-1359.29,0.00017556,2]
[373089831,1752858649469,-4623.0,0.00017556,2]
[373089833,1752858649478,-1513.01,0.00017556,2]
[373089834,1752858649488,-460.0,0.00017556,2]
[373089836,1752858649498,-151.0,0.00017558,2]
[373089839,1752858649507,-522.98,0.00017558,2]
[373089841,1752858649517,-525.98,0.00017558,2]
[373089843,1752858649527,-1021.92,0.00017558,2]
[373089845,1752858649537,-416.85135874,0.00017586,2]
[373089847,1752858649546,-1000.0,0.00017621,2]
[373089849,1752858649556,-1000.0,0.00017621,2]
[373089851,1752858649565,-1000.0,0.00017621,2]
[373089853,1752858649574,-500.0,0.00017621,2]
[373089854,1752858649583,-1000.0,0.00017621,2]
[373089856,1752858649592,-1795.64377921,0.000177,2]
[373089859,1752858649602,-2849.60510466,0.00017728,2]
[373089861,1752858649612,-271.88647531,0.00017777,2]
[373089863,1752858649622,-460.0,0.00017824,2]
[373089865,1752858649631,-460.0,0.00017824,2]
[373089867,1752858649640,-460.0,0.00017824,2]
[373089869,1752858649649,-460.0,0.00017824,2]
[373089871,1752858649659,-460.0,0.00017824,2]
[373089873,1752858649668,-460.0,0.00017824,2]
[373089875,1752858649678,-1937.58,0.00017824,2]
[373089885,1752858649766,-460.0,0.00017825,2]
[373089887,1752858649777,-460.0,0.00017825,2]
[373089889,1752858649786,-460.0,0.00017825,2]
[373089891,1752858649795,-460.0,0.00017825,2]
[373089893,1752858649805,-460.0,0.00017825,2]
[373089895,1752858649814,-475.30369844,0.00017825,2]
[373089897,1752858649824,-460.0,0.00017825,2]
[373089899,1752858649832,-516.17280033,0.00017825,2]
[373089901,1752858649842,-460.0,0.00017825,2]
[373089903,1752858649852,-463.32146511,0.00017825,2]
[373089905,1752858649861,-460.0,0.00017825,2]
[373089906,1752858649871,-460.0,0.00017825,2]
[373089908,1752858649880,-460.0,0.00017825,2]
[373089910,1752858649889,-460.0,0.00017825,2]
[373089912,1752858649898,-460.0,0.00017825,2]
[373089914,1752858649908,-460.0,0.00017825,2]
[373089916,1752858649918,-460.0,0.00017825,2]
[373089918,1752858649927,-460.0,0.00017825,2]
[373089920,1752858649937,-460.0,0.00017825,2]
[373089923,1752858649946,-460.0,0.00017825,2]
[373089925,1752858649956,-460.0,0.00017825,2]
[373089927,1752858649965,-460.0,0.00017825,2]
[373089929,1752858649975,-460.0,0.00017825,2]
[373089931,1752858649984,-460.0,0.00017825,2]
[373089933,1752858649994,-460.0,0.00017825,2]
[373089935,1752858650004,-711.11,0.00017825,2]
[373089937,1752858650013,-460.0,0.00017825,2]
[373089939,1752858650022,-496.37,0.00017825,2]
[373089941,1752858650031,-460.0,0.00017825,2]
[373089943,1752858650040,-460.0,0.00017825,2]
[373089945,1752858650050,-152.59702087,0.00017825,2]
[373089947,1752858650059,-460.0,0.00017825,2]
[373089949,1752858650068,-460.0,0.00017825,2]
[373089951,1752858650077,-460.0,0.00017825,2]
[373089953,1752858650086,-460.0,0.00017825,2]
[373089955,1752858650095,-460.0,0.00017825,2]
[373089957,1752858650105,-460.0,0.00017825,2]
[373089959,1752858650114,-460.0,0.00017825,2]
[373089961,1752858650124,-460.0,0.00017825,2]
[373089963,1752858650133,-460.0,0.00017825,2]
[373089965,1752858650142,-460.0,0.00017825,2]
[373089967,1752858650151,-925.97,0.00017825,2]
[373089969,1752858650160,-460.0,0.00017825,2]
[373089971,1752858650169,-460.0,0.00017825,2]
[373089973,1752858650179,-460.0,0.00017825,2]
[373089975,1752858650188,-460.0,0.00017825,2]
[373089977,1752858650197,-460.0,0.00017825,2]
[373089979,1752858650206,-460.0,0.00017825,2]
[373089981,1752858650215,-460.0,0.00017825,2]
[373089983,1752858650224,-460.0,0.00017825,2]
[373089985,1752858650233,-460.0,0.00017825,2]
[373089987,1752858650243,-460.0,0.00017825,2]
[373089989,1752858650252,-460.0,0.00017825,2]
[373089991,1752858650261,-460.0,0.00017825,2]
[373089993,1752858650271,-460.0,0.00017825,2]
[373089995,1752858650280,-460.0,0.00017825,2]
[373089997,1752858650290,-460.0,0.00017825,2]
[373089999,1752858650299,-460.0,0.00017825,2]
[373090001,1752858650309,-460.0,0.00017825,2]
[373090003,1752858650318,-604.8,0.00017825,2]
[373090005,1752858650327,-1112.11,0.00017825,2]
[373090007,1752858650336,-218.77220608,0.00017826,2]
[373090009,1752858650345,-460.0,0.00017826,2]
[373090011,1752858650355,-460.0,0.00017826,2]
[373090013,1752858650364,-460.0,0.00017826,2]
[373090015,1752858650373,-460.0,0.00017826,2]
[373090017,1752858650382,-460.0,0.00017826,2]
[373090019,1752858650392,-460.0,0.00017826,2]
[373090021,1752858650402,-460.0,0.00017826,2]
[373090023,1752858650415,-462.34,0.00017826,2]
[373090026,1752858650425,-634.72,0.00017826,2]
[373090028,1752858650435,-460.0,0.00017826,2]
[373090030,1752858650444,-460.0,0.00017826,2]
[373090032,1752858650454,-460.0,0.00017826,2]
[373090034,1752858650463,-151.0,0.00017826,2]
[373090035,1752858650473,-460.0,0.00017826,2]
[373090038,1752858650482,-151.0,0.00017826,2]
[373090040,1752858650493,-460.0,0.00017826,2]
[373090041,1752858650503,-460.0,0.00017826,2]
[373090043,1752858650512,-605.39,0.00017826,2]
[373090046,1752858650522,-460.0,0.00017826,2]
[373090048,1752858650531,-1644.5,0.00017826,2]
[373090050,1752858650540,-460.0,0.00017826,2]
[373090052,1752858650550,-852.85,0.00017826,2]
[373090054,1752858650560,-460.0,0.00017826,2]
[373090056,1752858650569,-460.0,0.00017826,2]
[373090058,1752858650578,-460.0,0.00017826,2]
[373090060,1752858650587,-460.0,0.00017826,2]
[373090062,1752858650596,-2496.21,0.00017826,2]
[373090064,1752858650606,-460.0,0.00017826,2]
[373090066,1752858650615,-460.0,0.00017826,2]
[373090068,1752858650624,-460.0,0.00017826,2]
[373090070,1752858650634,-460.0,0.00017826,2]
[373090072,1752858650643,-460.0,0.00017826,2]
[373090074,1752858650652,-2073.39,0.00017826,2]
[373090076,1752858650661,-460.0,0.00017826,2]
[373090078,1752858650670,-5605.67,0.00017826,2]
[373090080,1752858650679,-460.0,0.00017826,2]
[373090082,1752858650689,-460.0,0.00017826,2]
[373090084,1752858650698,-460.0,0.00017827,2]
[373090086,1752858650707,-460.0,0.00017827,2]
[373090088,1752858650716,-1731.1,0.00017827,2]
[373090090,1752858650726,-460.0,0.00017827,2]
[373090092,1752858650735,-460.0,0.00017827,2]
[373090094,1752858650746,-460.0,0.00017827,2]
[373090096,1752858650755,-460.0,0.00017827,2]
[373090098,1752858650764,-460.0,0.00017827,2]
[373090100,1752858650773,-460.0,0.00017827,2]
[373090102,1752858650782,-460.0,0.00017827,2]
[373090104,1752858650791,-484.83,0.00017827,2]
[373090106,1752858650801,-477.42,0.00017827,2]
[373090108,1752858650809,-460.0,0.00017827,2]
[373090110,1752858650819,-681.11,0.00017827,2]
[373090112,1752858650828,-460.0,0.00017827,2]
[373090114,1752858650837,-2400.36,0.00017827,2]
[373090116,1752858650847,-460.0,0.00017827,2]
[373090117,1752858650857,-460.0,0.00017828,2]
[373090120,1752858650866,-356.72942245,0.00017828,2]
[373090122,1752858650875,-460.0,0.00017828,2]
[373090124,1752858650884,-460.0,0.00017828,2]
[373090126,1752858650894,-460.0,0.00017828,2]
[373090128,1752858650903,-460.0,0.00017828,2]
[373090130,1752858650913,-460.0,0.00017828,2]
[373090132,1752858650922,-460.0,0.00017828,2]
[373090134,1752858650931,-460.0,0.00017828,2]
[373090136,1752858650940,-151.0,0.00017828,2]
[373090138,1752858650964,-460.0,0.00017828,2]
[373090140,1752858650974,-4644.07,0.00017828,2]
[373090142,1752858650983,-1229.7,0.00017828,2]
[373090144,1752858650993,-151.0,0.00017828,2]
[373090146,1752858651003,-151.0,0.00017828,2]
[373090148,1752858651012,-291.369193,0.00017828,2]
[373090150,1752858651021,-291.369193,0.00017828,2]
[373090152,1752858651031,-736.0,0.0001783,2]
[373090154,1752858651040,-500.0,0.0001783,2]
[373090156,1752858651049,-1122.5,0.0001783,2]
[373090157,1752858651058,-1890.89,0.0001783,2]
[373090159,1752858651067,-1359.29,0.0001783,2]
[373090162,1752858651077,-4623.0,0.0001783,2]
[373090163,1752858651086,-1513.01,0.0001783,2]
[373090166,1752858651095,-460.0,0.0001783,2]
[373090168,1752858651105,-522.98,0.00017832,2]
[373090169,1752858651114,-525.98,0.00017832,2]
[373090172,1752858651123,-1021.92,0.00017832,2]
[373090174,1752858651133,-500.0,0.00017842,2]
[373090176,1752858651143,-275.63244462,0.00017857,2]
[373090178,1752858651152,-151.0,0.00017885,2]
[373090180,1752858651161,-250.89168,0.00017885,2]
[373090182,1752858651170,-250.89168,0.00017885,2]
[373090184,1752858651179,-160.0,0.00017885,2]
[373090186,1752858651189,-215.63268315,0.00017885,2]
[373090188,1752858651198,-839.30593155,0.00017885,2]
[373090190,1752858651207,-160.0,0.00017885,2]
[373090192,1752858651216,-476.25663856,0.00017885,2]
[373090194,1752858651225,-160.0,0.00017885,2]
[373090196,1752858651234,-525.75194068,0.00017885,2]
[373090198,1752858651244,-160.0,0.00017885,2]
[373090200,1752858651256,-12610.43989422,0.00017885,2]
[373090202,1752858651265,-214.4881157,0.00017885,2]
[373090204,1752858651274,-160.0,0.00017885,2]
[373090206,1752858651284,-230.89969799,0.00017885,2]
[373090208,1752858651293,-160.0,0.00017885,2]
[373090209,1752858651302,-160.0,0.00017885,2]
[373090211,1752858651312,-160.0,0.00017904,2]
[373090213,1752858651322,-420.0,0.00017982,2]
[373090216,1752858651331,-175.203962,0.00017983,2]
[373090218,1752858651341,-151.0,0.00017983,2]
[373090220,1752858651350,-151.0,0.00017983,2]
[373090222,1752858651360,-151.0,0.00017983,2]
[373090224,1752858651370,-192.530784,0.00017983,2]
[373090233,1752858651453,-192.530784,0.00017983,2]
[373090235,1752858651463,-191.666002,0.00017983,2]
[373090237,1752858651472,-191.666002,0.00017983,2]
[373090239,1752858651482,-151.0,0.00017983,2]
[373090241,1752858651492,-176.410534,0.00017983,2]
[373090243,1752858651503,-151.0,0.00018,2]
[373090246,1752858651513,-2849.60510466,0.00018003,2]
[373090247,1752858651522,-1500.0,0.00018068,2]
[373090250,1752858651531,-462.83992777,0.00018068,2]
[373090252,1752858651540,-1500.0,0.00018068,2]
[373090253,1752858651550,-1500.0,0.00018068,2]
[373090256,1752858651559,-270.97440349,0.00018068,2]
[373090258,1752858651569,-460.0,0.00018098,2]
[373090260,1752858651579,-460.0,0.00018098,2]
[373090262,1752858651588,-460.0,0.00018098,2]
[373090263,1752858651597,-460.0,0.00018098,2]
[373090265,1752858651607,-460.0,0.00018098,2]
[373090267,1752858651616,-460.0,0.00018098,2]
[373090270,1752858651626,-1937.58,0.00018098,2]
[373090272,1752858651635,-460.0,0.00018099,2]
[373090274,1752858651646,-460.0,0.00018099,2]
[373090276,1752858651656,-460.0,0.00018099,2]
[373090278,1752858651665,-460.0,0.00018099,2]
[373090280,1752858651676,-460.0,0.00018099,2]
[373090282,1752858651685,-565.96,0.00018099,2]
[373090284,1752858651695,-460.0,0.00018099,2]
[373090286,1752858651704,-460.0,0.00018099,2]
[373090288,1752858651713,-460.0,0.00018099,2]
[373090290,1752858651723,-460.0,0.00018099,2]